bitfinex/quotes_BTCUSD_20220226
["timestamp","ask_amount","ask_price","bid_price","bid_amount"]
[1645892822397,0.26765212,39241.0,39234.0,0.127496]
[1645892822799,0.25765212,39241.0,39234.0,0.127496]
[1645892823201,0.25765212,39241.0,39229.0,0.193227]
[1645892823202,0.24142098,39236.0,39229.0,0.193227]
[1645892823400,0.24142098,39236.0,39229.0,0.002]
[1645892823401,0.1,39230.0,39229.0,0.002]
[1645892823603,0.1,39230.0,39224.0,0.01745231]
[1645892823604,0.378381,39229.0,39224.0,0.01745231]
[1645892823801,0.678381,39229.0,39224.0,0.01745231]
[1645892823998,0.378381,39229.0,39224.0,0.01745231]
[1645892824198,0.01019,39229.0,39224.0,0.01745231]
[1645892824445,0.01019,39229.0,39224.0,0.07122031]
[1645892824645,0.01019,39229.0,39224.0,0.05812591]
[1645892824847,0.01019,39229.0,39224.0,0.05847008]
[1645892825044,0.01018,39230.0,39224.0,0.06047008]
[1645892825250,0.01018,39230.0,39225.0,0.00049886]
[1645892825846,0.56151693,39234.0,39225.0,0.00049886]
[1645892825847,0.21384746,39233.0,39225.0,0.00049886]
[1645892826045,0.26151693,39234.0,39225.0,0.00049886]
[1645892826046,0.26151693,39234.0,39226.0,0.063761]
[1645892826249,0.33601693,39235.0,39226.0,0.063761]
[1645892826448,0.33601693,39235.0,39228.0,0.063754]
[1645892826647,0.1936,39235.0,39228.0,0.242365]
[1645892827052,0.1936,39235.0,39228.0,0.244365]
[1645892827648,0.40093614,39238.0,39228.0,0.244365]
[1645892827853,0.18708868,39238.0,39228.0,1.021165]
[1645892828300,0.3,39237.0,39228.0,0.242365]
[1645892828499,0.3,39237.0,39226.0,0.01018]
[1645892828699,0.21384746,39234.0,39225.0,0.00049886]
[1645892829300,0.21384746,39234.0,39226.0,0.063766]
[1645892829301,0.17452422,39232.0,39226.0,0.063766]
[1645892830099,0.21384746,39235.0,39227.0,0.063763]
[1645892830998,0.001,39235.0,39227.0,0.063763]
[1645892831199,0.19349464,39235.0,39227.0,0.063763]
[1645892832047,0.49349464,39235.0,39227.0,0.063763]
[1645892832250,0.49249464,39235.0,39227.0,0.06334734]
[1645892832447,0.49249464,39235.0,39227.0,0.01094734]
[1645892832849,0.49249464,39235.0,39227.0,0.00094734]
[1645892833053,0.378381,39234.0,39226.0,0.063766]
[1645892833249,0.378381,39232.0,39226.0,0.063766]
[1645892833549,0.3,39233.0,39226.0,0.063766]
[1645892834949,0.3,39233.0,39226.0,0.064766]
[1645892835799,0.21384746,39235.0,39227.0,0.063764]
[1645892836197,0.21384746,39237.0,39228.0,0.127516]
[1645892836401,0.35626439,39238.0,39228.0,0.127516]
[1645892836599,0.21384746,39238.0,39229.0,0.0511]
[1645892836798,0.4305866,39238.0,39231.0,0.063756]
[1645892836998,0.4315866,39238.0,39231.0,0.063756]
[1645892837600,0.4315866,39238.0,39231.0,0.127512]
[1645892838403,0.4315866,39238.0,39228.0,0.127516]
[1645892838404,0.3,39237.0,39228.0,0.127516]
[1645892838702,0.51384746,39237.0,39228.0,0.127516]
[1645892838902,0.21384746,39236.0,39228.0,0.127516]
[1645892839355,0.51384746,39235.0,39228.0,0.127516]
[1645892839547,0.21384746,39235.0,39226.0,0.17862]
[1645892839946,0.18450493,39232.0,39226.0,0.12752]
[1645892841647,0.21384746,39235.0,39226.0,0.12752]
[1645892842250,0.21384746,39235.0,39226.0,0.255042]
[1645892842449,0.21384746,39235.0,39228.0,0.063759]
[1645892842649,0.21384746,39235.0,39228.0,0.0633006]
[1645892842856,0.21384746,39236.0,39228.0,0.0633006]
[1645892843097,0.21384746,39236.0,39228.0,0.0643006]
[1645892843499,0.21384746,39236.0,39229.0,0.063759]
[1645892845097,0.21584746,39236.0,39229.0,0.063759]
[1645892846299,0.21384746,39236.0,39229.0,0.063759]
[1645892846843,0.21384746,39236.0,39229.0,0.053759]
[1645892847045,0.21584746,39236.0,39229.0,0.053759]
[1645892848345,0.21384746,39236.0,39229.0,0.053759]
[1645892849045,0.21384746,39236.0,39229.0,0.054759]
[1645892850347,0.21384746,39236.0,39229.0,0.053759]
[1645892850794,0.21384746,39236.0,39229.0,0.23903008]
[1645892852894,0.21384746,39236.0,39226.0,0.255042]
[1645892853096,0.21384746,39236.0,39226.0,0.127522]
[1645892853097,0.21384746,39234.0,39226.0,0.127522]
[1645892853495,0.21384746,39234.0,39223.0,0.05532762]
[1645892853699,0.21384746,39234.0,39223.0,0.04565672]
[1645892853999,0.19994793,39233.0,39223.0,0.04565672]
[1645892854199,0.5,39229.0,39223.0,0.04565672]
[1645892856856,0.5,39229.0,39224.0,0.063765]
[1645892857758,0.5,39229.0,39225.0,0.063765]
[1645892858603,0.50037246,39229.0,39225.0,0.063765]
[1645892858804,0.50037246,39229.0,39225.0,0.065765]
[1645892859402,0.50037246,39229.0,39225.0,0.063765]
[1645892860703,0.5,39229.0,39225.0,0.063765]
[1645892860903,0.50037246,39229.0,39225.0,0.063765]
[1645892861960,0.5,39229.0,39225.0,0.063765]
[1645892862156,0.50037246,39229.0,39225.0,0.063765]
[1645892863056,0.5,39229.0,39225.0,0.063765]
[1645892863456,0.50037246,39229.0,39225.0,0.063765]
[1645892864256,0.5,39229.0,39225.0,0.063765]
[1645892864459,0.5,39229.0,39225.0,0.064765]
[1645892864659,0.50037246,39229.0,39225.0,0.001]
[1645892864858,0.71421992,39229.0,39225.0,0.001]
[1645892865598,0.71384746,39229.0,39223.0,0.04565672]
[1645892865799,0.71421992,39229.0,39223.0,0.04565672]
[1645892866400,0.71521992,39229.0,39223.0,0.04565672]
[1645892866799,0.71484746,39229.0,39223.0,0.04565672]
[1645892867004,0.71521992,39229.0,39223.0,0.04565672]
[1645892867701,0.71421992,39229.0,39224.0,0.063765]
[1645892867903,0.5,39229.0,39224.0,0.063765]
[1645892868105,0.50037246,39229.0,39224.0,0.063765]
[1645892869203,0.5,39229.0,39224.0,0.063765]
[1645892869445,0.50037246,39229.0,39225.0,0.063765]
[1645892870052,0.71421992,39229.0,39225.0,0.063765]
[1645892870246,0.5,39229.0,39225.0,0.063765]
[1645892870748,0.50037246,39229.0,39225.0,0.063765]
[1645892871446,0.5,39229.0,39225.0,0.063765]
[1645892871846,0.50037246,39229.0,39225.0,0.063765]
[1645892872047,0.50037246,39229.0,39225.0,0.27903095]
[1645892872250,0.50037246,39229.0,39225.0,0.34279108]
[1645892872449,0.50037246,39229.0,39225.0,0.34379108]
[1645892872647,0.5,39229.0,39225.0,0.34379108]
[1645892872850,0.50037246,39229.0,39225.0,0.34379108]
[1645892873505,0.50037246,39229.0,39225.0,0.28003095]
[1645892873707,0.50037246,39229.0,39225.0,0.27903095]
[1645892873905,0.5,39229.0,39225.0,0.27903095]
[1645892874107,0.50037246,39229.0,39225.0,0.27903095]
[1645892874507,0.50137246,39229.0,39225.0,0.27903095]
[1645892874910,0.50137246,39229.0,39225.0,0.063765]
[1645892875106,0.501,39229.0,39225.0,0.063765]
[1645892875509,0.50137246,39229.0,39225.0,0.063765]
[1645892875706,0.50037246,39229.0,39225.0,0.063765]
[1645892876107,0.1900135,39228.0,39223.0,0.21538582]
[1645892876506,0.1900135,39228.0,39225.0,0.001]
[1645892877560,0.1900135,39228.0,39225.0,0.064765]
[1645892877757,0.50016138,39229.0,39225.0,0.063765]
[1645892878460,0.50016138,39229.0,39225.0,0.064765]
[1645892878662,0.5,39229.0,39226.0,0.0511]
[1645892878859,0.50016138,39229.0,39227.0,0.127507]
[1645892879058,0.50016138,39229.0,39228.0,0.0511]
[1645892879258,0.00016138,39229.0,39228.0,0.0511]
[1645892879858,0.1232,39234.0,39228.0,0.0511]
[1645892880261,0.1842766,39229.0,39222.0,0.127531]
[1645892880461,0.1842766,39229.0,39223.0,0.128532]
[1645892880898,0.00037269,39230.0,39223.0,0.128532]
[1645892881105,0.3,39233.0,39223.0,0.128532]
[1645892881299,0.00037269,39229.0,39226.0,0.063766]
[1645892881499,0.00037269,39229.0,39226.0,0.114866]
[1645892882299,0.1222,39234.0,39226.0,0.114866]
[1645892882500,0.00037269,39229.0,39226.0,0.178628]
[1645892882903,0.00037269,39229.0,39226.0,0.127528]
[1645892883100,0.23658835,39227.0,39226.0,0.127528]
[1645892883300,0.23658835,39227.0,39226.0,0.063762]
[1645892883502,0.16807253,39222.0,39221.0,0.01118]
[1645892883701,0.16807253,39222.0,39220.0,0.01055278]
[1645892884449,0.16807253,39222.0,39220.0,0.01355278]
[1645892884653,0.16807253,39222.0,39220.0,0.01318]
[1645892884849,0.16807253,39222.0,39220.0,0.003]
[1645892885849,0.16807253,39222.0,39219.0,0.191311]
[1645892886049,0.16807253,39222.0,39219.0,0.19168376]
[1645892886248,0.16807253,39222.0,39219.0,0.57852565]
[1645892887051,0.16807253,39222.0,39219.0,0.57815289]
[1645892887249,0.16807253,39222.0,39219.0,0.57852566]
[1645892887651,0.16807253,39222.0,39220.0,0.32307663]
[1645892888097,0.16807253,39222.0,39220.0,0.37417663]
[1645892888497,0.16807253,39222.0,39220.0,0.0531]
[1645892888694,0.16807253,39222.0,39220.0,0.37617663]
[1645892889896,0.16807253,39222.0,39220.0,0.37417663]
[1645892890501,0.16807253,39222.0,39220.0,0.37617663]
[1645892891850,0.16807253,39222.0,39220.0,0.37417663]
[1645892892050,0.16807253,39222.0,39220.0,0.42417663]
[1645892892250,0.16807253,39222.0,39221.0,0.06376]
[1645892892452,0.16807253,39222.0,39221.0,0.11486]
[1645892892650,0.16807253,39222.0,39221.0,0.1041065]
[1645892893752,0.16807253,39222.0,39221.0,0.42718313]
[1645892893952,0.16807253,39222.0,39221.0,0.1041065]
[1645892894553,0.16807253,39222.0,39221.0,0.0531]
[1645892895703,0.16807253,39222.0,39221.0,0.0511]
[1645892898207,0.16807253,39222.0,39221.0,0.3203546]
[1645892898603,0.16807253,39222.0,39221.0,0.3223546]
[1645892899203,0.16807253,39222.0,39221.0,0.002]
[1645892899864,0.16807253,39222.0,39219.0,0.4605656]
[1645892900454,0.16807253,39222.0,39219.0,0.5243316]
[1645892900653,0.16807253,39222.0,39219.0,0.5263316]
[1645892901054,0.16807253,39222.0,39220.0,0.2692546]
[1645892901254,0.16807253,39222.0,39220.0,0.33301676]
[1645892903102,0.16807253,39222.0,39221.0,0.21539428]
[1645892904704,0.16807253,39222.0,39220.0,0.28003546]
[1645892905105,0.16807253,39222.0,39220.0,0.27966295]
[1645892905304,0.16807253,39222.0,39221.0,0.002]
[1645892905505,0.16807253,39222.0,39221.0,0.21740179]
[1645892906408,0.16807253,39222.0,39221.0,0.21540179]
[1645892906608,0.16807253,39222.0,39221.0,0.21740179]
[1645892907255,0.16807253,39222.0,39221.0,0.002]
[1645892907756,0.16807253,39222.0,39220.0,0.00087151]
[1645892908657,0.16807253,39222.0,39220.0,0.000499]
[1645892910704,0.16807253,39222.0,39220.0,0.002499]
[1645892911203,0.3,39221.0,39220.0,0.002499]
[1645892911603,0.16307253,39222.0,39220.0,0.002499]
[1645892911808,0.16307253,39222.0,39220.0,0.000499]
[1645892912407,0.3,39221.0,39220.0,0.000499]
[1645892912806,0.16307253,39222.0,39220.0,0.000499]
[1645892913608,0.07648588,39216.0,39215.0,0.0041]
[1645892913807,0.07648588,39216.0,39215.0,0.0021]
[1645892914654,0.07614415,39216.0,39215.0,0.0021]
[1645892916660,0.07614415,39216.0,39215.0,0.0041]
[1645892917861,0.07614415,39216.0,39215.0,0.0021]
[1645892918700,0.07614415,39216.0,39215.0,0.0041]
[1645892919903,0.07614415,39216.0,39215.0,0.0021]
[1645892920703,0.07614415,39216.0,39215.0,0.0041]
[1645892921869,0.07614415,39216.0,39215.0,0.0021]
[1645892922671,0.07614415,39216.0,39215.0,0.0041]
[1645892923869,0.07614415,39216.0,39215.0,0.0021]
[1645892924569,0.07614415,39216.0,39215.0,0.0041]
[1645892924771,0.31003,39224.0,39217.0,0.063773]
[1645892924971,0.01003,39224.0,39217.0,0.063773]
[1645892925170,0.31018,39225.0,39217.0,0.063773]
[1645892925599,0.23929736,39221.0,39217.0,0.063773]
[1645892925801,0.23929736,39221.0,39219.0,0.00037251]
[1645892926602,0.23929736,39221.0,39219.0,0.00137251]
[1645892926803,0.23929736,39221.0,39219.0,0.001]
[1645892927605,0.23895568,39221.0,39219.0,0.001]
[1645892927807,0.3,39220.0,39219.0,0.001]
[1645892928007,0.3,39220.0,39215.0,0.0021]
[1645892928205,0.23895568,39221.0,39218.0,0.00037251]
[1645892928606,0.3,39220.0,39218.0,0.00037251]
[1645892929206,0.3,39220.0,39215.0,0.0021]
[1645892929457,0.3,39220.0,39217.0,0.00037252]
[1645892930258,0.3,39220.0,39215.0,0.0021]
[1645892930457,0.3,39220.0,39217.0,0.00037252]
[1645892930656,0.301,39220.0,39217.0,0.00037252]
[1645892931559,0.301,39220.0,39215.0,0.0021]
[1645892931756,0.301,39220.0,39217.0,0.00037252]
[1645892931956,0.3,39220.0,39217.0,0.00037252]
[1645892932558,0.4,39220.0,39217.0,0.00037252]
[1645892932758,0.54911796,39220.0,39215.0,0.0021]
[1645892932960,0.54911796,39220.0,39217.0,0.00037252]
[1645892933409,0.01018,39219.0,39217.0,0.00037252]
[1645892934003,0.01018,39219.0,39215.0,0.0021]
[1645892934202,0.01018,39219.0,39216.0,0.00037253]
[1645892934806,0.3,39220.0,39216.0,0.00037253]
[1645892935101,0.3,39220.0,39215.0,0.0031]
[1645892935302,0.3,39220.0,39216.0,0.00037253]
[1645892936401,0.3,39220.0,39215.0,0.0021]
[1645892936604,0.3,39220.0,39216.0,0.00137253]
[1645892936855,0.23895568,39221.0,39216.0,0.00137253]
[1645892937456,0.23895568,39221.0,39216.0,0.001]
[1645892937653,0.3,39220.0,39217.0,0.00037252]
[1645892937853,0.23895568,39221.0,39217.0,0.00037252]
[1645892938655,0.23895568,39221.0,39217.0,0.001]
[1645892938856,0.23895568,39221.0,39217.0,0.00137252]
[1645892939054,0.3,39220.0,39217.0,0.00137252]
[1645892939856,0.23895568,39221.0,39215.0,0.0021]
[1645892939857,0.23895568,39221.0,39215.0,0.065883]
[1645892940160,0.3292288,39223.0,39217.0,0.00037252]
[1645892940360,0.3292288,39223.0,39217.0,0.06415252]
[1645892940625,0.115,39223.0,39218.0,0.0511]
[1645892940815,0.13793796,39226.0,39218.0,0.0511]
[1645892941016,0.3980288,39227.0,39218.0,0.0511]
[1645892941416,0.3980288,39227.0,39222.0,0.063772]
[1645892941616,0.2142288,39227.0,39222.0,0.063772]
[1645892941816,0.35216676,39227.0,39222.0,0.063772]
[1645892942015,0.2142288,39227.0,39222.0,0.063772]
[1645892942419,0.2142288,39226.0,39222.0,0.063772]
[1645892942825,0.001,39227.0,39222.0,0.063772]
[1645892943018,0.001,39227.0,39223.0,0.063768]
[1645892943218,0.21460123,39229.0,39223.0,0.063768]
[1645892943619,0.25574509,39219.0,39218.0,0.5050701]
[1645892943817,0.25574509,39219.0,39218.0,0.72034702]
[1645892944019,0.25574509,39219.0,39218.0,0.5050701]
[1645892944220,0.25574509,39219.0,39218.0,0.83410987]
[1645892944452,0.25574509,39219.0,39218.0,0.88520987]
[1645892944653,0.25574509,39219.0,39218.0,0.93183623]
[1645892945457,0.25574509,39219.0,39218.0,0.71068331]
[1645892945751,0.25574509,39219.0,39218.0,0.431641]
[1645892945951,0.25574509,39219.0,39218.0,0.428641]
[1645892946352,0.25574509,39219.0,39218.0,0.49241353]
[1645892946753,0.25574509,39219.0,39218.0,0.49230726]
[1645892947352,0.25574509,39219.0,39218.0,0.70758672]
[1645892947563,0.25574509,39219.0,39218.0,0.49230726]
[1645892947757,0.25574509,39219.0,39218.0,0.25]
[1645892949004,0.35574509,39219.0,39218.0,0.25]
[1645892949401,0.65574509,39219.0,39218.0,0.25]
[1645892950004,0.86997389,39219.0,39218.0,0.25]
[1645892950303,1.64677389,39219.0,39218.0,0.25]
[1645892950507,0.86997389,39219.0,39218.0,0.25]
[1645892950702,1.64677389,39219.0,39218.0,0.2489]
[1645892950903,0.65574509,39219.0,39218.0,0.2489]
[1645892951103,0.86997389,39219.0,39218.0,0.2489]
[1645892951304,0.86497389,39219.0,39218.0,0.2489]
[1645892951507,0.86497389,39219.0,39217.0,0.00037252]
[1645892951508,2.355181,39218.0,39217.0,0.00037252]
[1645892951706,2.355181,39218.0,39215.0,7.252e-05]
[1645892951707,0.7768,39216.0,39215.0,7.252e-05]
[1645892951956,1.1768,39216.0,39215.0,7.252e-05]
[1645892952155,1.4442845,39216.0,39215.0,7.252e-05]
[1645892952557,1.58816902,39216.0,39215.0,7.252e-05]
[1645892952760,1.33088452,39216.0,39215.0,7.252e-05]
[1645892952957,1.187,39216.0,39215.0,7.252e-05]
[1645892953456,1.33090014,39216.0,39215.0,7.252e-05]
[1645892953858,0.55410014,39216.0,39215.0,7.252e-05]
[1645892954056,0.4,39216.0,39215.0,7.252e-05]
[1645892954258,1.39070031,39216.0,39215.0,7.252e-05]
[1645892954459,0.61385417,39216.0,39215.0,7.252e-05]
[1645892954757,0.61485417,39216.0,39215.0,7.252e-05]
[1645892955158,1.1778,39216.0,39215.0,7.252e-05]
[1645892955618,1.5354827,39216.0,39215.0,7.252e-05]
[1645892956016,1.5344827,39216.0,39215.0,7.252e-05]
[1645892956215,1.29062039,39216.0,39215.0,7.252e-05]
[1645892956418,1.44985337,39216.0,39215.0,7.252e-05]
[1645892956616,1.55085337,39216.0,39215.0,7.252e-05]
[1645892956816,0.67405337,39216.0,39215.0,7.252e-05]
[1645892957217,0.301,39216.0,39215.0,7.252e-05]
[1645892957619,0.001,39216.0,39215.0,7.252e-05]
[1645892958017,0.21382039,39217.0,39215.0,7.252e-05]
[1645892958716,0.3,39216.0,39215.0,7.252e-05]
[1645892959119,0.3,39216.0,39215.0,0.25007252]
[1645892959757,0.778381,39216.0,39215.0,0.25007252]
[1645892959958,0.3,39216.0,39215.0,0.25007252]
[1645892960759,0.3,39216.0,39215.0,0.25107252]
[1645892960958,0.7768,39216.0,39215.0,0.25107252]
[1645892961161,0.378381,39216.0,39215.0,0.25107252]
[1645892961357,0.15923298,39216.0,39215.0,0.25107252]
[1645892961558,0.21382039,39217.0,39215.0,0.25107252]
[1645892961759,0.478381,39216.0,39215.0,0.25107252]
[1645892961960,0.3,39216.0,39215.0,0.25007252]
[1645892962160,0.378381,39216.0,39215.0,0.25007252]
[1645892962362,0.21347867,39217.0,39215.0,0.25007252]
[1645892962563,0.3,39218.0,39215.0,0.25007252]
[1645892962763,0.15923298,39217.0,39215.0,0.25107252]
[1645892962965,0.3,39218.0,39215.0,0.25107252]
[1645892963909,0.3,39218.0,39215.0,0.25007252]
[1645892964108,0.3,39218.0,39215.0,0.25044505]
[1645892964309,1.0768,39218.0,39215.0,0.25044505]
[1645892964710,0.7768,39216.0,39215.0,0.25044505]
[1645892965109,0.7768,39216.0,39215.0,0.25007252]
[1645892965313,0.15923298,39217.0,39215.0,0.25007252]
[1645892965511,0.15923298,39217.0,39214.0,0.00237254]
[1645892965512,0.13082862,39214.0,39211.0,0.01]
[1645892966717,0.13182862,39214.0,39211.0,0.01]
[1645892967754,0.13147609,39214.0,39211.0,0.01]
[1645892967955,0.13047609,39214.0,39211.0,0.01]
[1645892970060,0.13047609,39214.0,39211.0,0.01037255]
[1645892970260,0.13047609,39214.0,39211.0,0.01137255]
[1645892970729,0.13047609,39214.0,39211.0,0.06347255]
[1645892971127,0.12909626,39214.0,39211.0,0.0631]
[1645892971326,0.12909626,39214.0,39211.0,0.06347255]
[1645892971527,0.12909626,39214.0,39211.0,0.31347255]
[1645892971732,0.12909626,39214.0,39211.0,0.37725955]
[1645892972127,0.12909626,39214.0,39211.0,0.37525955]
[1645892972327,0.12909626,39214.0,39211.0,0.374887]
[1645892972527,0.12909626,39214.0,39211.0,0.37525955]
[1645892972727,0.12909626,39214.0,39211.0,0.37725955]
[1645892972927,0.12909626,39214.0,39212.0,0.18211432]
[1645892973127,0.12909626,39214.0,39212.0,0.23321432]
[1645892973733,0.12909626,39214.0,39211.0,0.17601886]
[1645892973931,0.12909626,39214.0,39212.0,0.0511]
[1645892974367,0.12909626,39214.0,39213.0,0.1]
[1645892974564,0.12909626,39214.0,39213.0,0.1613]
[1645892974968,0.12909626,39214.0,39213.0,0.2011]
[1645892975365,0.12909626,39214.0,39213.0,0.22654]
[1645892976367,0.12909626,39214.0,39213.0,0.52295441]
[1645892976566,0.12909626,39214.0,39213.0,0.53315441]
[1645892977366,0.25074509,39219.0,39213.0,0.53315441]
[1645892977367,0.25074509,39219.0,39216.0,0.02544]
[1645892977566,0.25074509,39219.0,39217.0,0.0511]
[1645892977769,0.25074509,39219.0,39218.0,0.12752846]
[1645892977970,0.25074509,39219.0,39218.0,0.20406846]
[1645892978212,0.25074509,39219.0,39218.0,0.17862846]
[1645892979310,0.24074509,39219.0,39218.0,0.17862846]
[1645892980814,0.24074509,39219.0,39218.0,0.20406846]
[1645892981212,0.24074509,39219.0,39218.0,0.17862846]
[1645892982754,0.24074509,39219.0,39218.0,0.42862846]
[1645892984658,0.24074509,39219.0,39218.0,0.43062846]
[1645892985255,0.24074509,39219.0,39218.0,0.49439546]
[1645892986112,0.24074509,39219.0,39218.0,0.49239546]
[1645892986709,0.24074509,39219.0,39218.0,0.49439546]
[1645892987507,0.24074509,39219.0,39218.0,0.1478677]
[1645892987909,0.24074509,39219.0,39218.0,0.1458677]
[1645892988107,0.24074509,39219.0,39218.0,0.0821007]
[1645892989008,0.24074509,39219.0,39218.0,0.27339616]
[1645892989208,0.24074509,39219.0,39218.0,0.57339616]
[1645892989469,0.24074509,39219.0,39218.0,0.62449616]
[1645892989873,0.24074509,39219.0,39218.0,0.64993616]
[1645892990072,0.24074509,39219.0,39218.0,1.43803616]
[1645892990469,0.24074509,39219.0,39218.0,1.65326548]
[1645892990670,0.00037248,39221.0,39220.0,0.25855877]
[1645892990870,0.00037248,39221.0,39220.0,1.34775877]
[1645892991070,0.00037248,39221.0,39220.0,1.39775877]
[1645892991270,0.00037248,39221.0,39220.0,1.44775877]
[1645892991671,0.34652776,39224.0,39220.0,1.44775877]
[1645892991672,0.34652776,39224.0,39223.0,0.152943]
[1645892991874,0.34652776,39224.0,39223.0,0.504043]
[1645892992071,0.34652776,39224.0,39223.0,0.604043]
[1645892992474,0.34652776,39224.0,39223.0,0.578603]
[1645892992671,0.34652776,39224.0,39223.0,0.604043]
[1645892993109,0.27152776,39224.0,39223.0,0.604043]
[1645892994710,0.27152776,39224.0,39223.0,0.607043]
[1645892994909,0.27152776,39224.0,39223.0,0.707043]
[1645892995409,0.27152776,39224.0,39223.0,0.581603]
[1645892996011,0.27060956,39224.0,39223.0,0.578603]
[1645892996412,0.0123,39229.0,39224.0,1.263751]
[1645892996615,0.0123,39229.0,39228.0,1.0381]
[1645892996876,0.34652776,39234.0,39229.0,1.2]
[1645892997083,0.34652776,39234.0,39230.0,1.0892]
[1645892997275,0.34652776,39234.0,39231.0,0.05]
[1645892997479,0.34652776,39234.0,39232.0,0.0511]
[1645893000478,0.34652776,39234.0,39233.0,0.3]
[1645893000714,0.34652776,39234.0,39233.0,0.578575]
[1645893001111,0.34652776,39234.0,39233.0,0.678575]
[1645893002115,0.34652776,39234.0,39233.0,0.578575]
[1645893002916,0.34652776,39234.0,39233.0,0.506575]
[1645893003714,0.34652776,39234.0,39232.0,0.3]
[1645893003914,0.34652776,39234.0,39232.0,0.0511]
[1645893004565,0.34652776,39234.0,39233.0,0.127475]
[1645893004764,0.34652776,39234.0,39233.0,0.228575]
[1645893005164,0.34652776,39234.0,39233.0,0.0511]
[1645893006568,0.56473589,39234.0,39233.0,0.0511]
[1645893006973,0.56473589,39234.0,39232.0,0.1]
[1645893009217,0.378381,39233.0,39232.0,0.1]
[1645893009418,0.56473589,39234.0,39232.0,0.1]
[1645893009817,0.5651083,39234.0,39232.0,0.1]
[1645893010216,0.5651083,39234.0,39232.0,0.00093674]
[1645893010621,0.378381,39231.0,39217.0,0.00037257]
[1645893010821,0.378381,39225.0,39215.0,0.063782]
[1645893011018,0.678381,39224.0,39217.0,0.00037258]
[1645893011217,0.3,39224.0,39217.0,0.00037258]
[1645893011617,0.19902808,39223.0,39217.0,0.00037258]
[1645893011861,0.3,39222.0,39217.0,0.00037258]
[1645893012064,0.3,39222.0,39211.0,0.00043448]
[1645893012262,0.20535182,39216.0,39211.0,0.00043448]
[1645893012863,0.20535182,39216.0,39211.0,0.00343448]
[1645893013470,0.20535182,39216.0,39212.0,0.00037255]
[1645893013865,0.3,39215.0,39212.0,0.00037255]
[1645893014265,0.3,39215.0,39214.0,0.08490778]
[1645893014467,0.3,39215.0,39214.0,0.16981556]
[1645893014665,0.3,39215.0,39214.0,0.16935526]
[1645893014864,0.3,39215.0,39214.0,0.16635526]
[1645893016118,0.20535182,39216.0,39214.0,0.16435526]
[1645893016312,0.3,39215.0,39214.0,0.16435526]
[1645893017219,0.3,39215.0,39214.0,0.26435526]
[1645893017815,0.20535182,39216.0,39214.0,0.26435526]
[1645893018418,0.20535182,39216.0,39214.0,0.16435526]
[1645893018822,0.20535182,39216.0,39214.0,0.16535526]
[1645893019468,0.20535182,39216.0,39214.0,0.001]
[1645893019665,0.20535182,39216.0,39215.0,0.16435526]
[1645893020866,0.20735182,39216.0,39215.0,0.16435526]
[1645893021566,0.20735182,39216.0,39215.0,0.08935526]
[1645893022164,0.20535182,39216.0,39215.0,0.08935526]
[1645893022769,0.50535182,39216.0,39215.0,0.08935526]
[1645893023122,0.20535182,39216.0,39215.0,0.08935526]
[1645893023719,0.50535182,39216.0,39215.0,0.08935526]
[1645893023915,0.20535182,39216.0,39215.0,0.08935526]
[1645893024616,0.50535182,39216.0,39215.0,0.08490778]
[1645893025017,0.50535182,39216.0,39215.0,0.08935526]
[1645893025219,0.20535182,39216.0,39215.0,0.08935526]
[1645893025418,0.50535182,39216.0,39215.0,0.08935526]
[1645893025619,0.20535182,39216.0,39215.0,0.08935526]
[1645893028872,0.50535182,39216.0,39215.0,0.08935526]
[1645893029068,0.50635182,39216.0,39215.0,0.08935526]
[1645893029275,0.50578137,39216.0,39215.0,0.08935526]
[1645893030070,0.50478137,39216.0,39215.0,0.08935526]
[1645893030720,0.20478137,39216.0,39215.0,0.08935526]
[1645893033724,0.20478137,39216.0,39208.0,0.00149038]
[1645893033725,0.01966761,39208.0,39196.0,0.0041]
[1645893033926,0.01966761,39208.0,39201.0,0.127574]
[1645893034128,0.01966761,39208.0,39207.0,0.063793]
[1645893034571,0.01966761,39208.0,39207.0,0.127586]
[1645893039316,0.01966761,39208.0,39207.0,0.129586]
[1645893039714,0.01966761,39208.0,39207.0,0.065793]
[1645893039915,0.01966761,39208.0,39207.0,0.063793]
[1645893043070,0.01966761,39208.0,39207.0,0.065793]
[1645893044273,0.01966761,39208.0,39207.0,0.063793]
[1645893045475,0.01966761,39208.0,39207.0,0.053793]
[1645893046915,0.01966761,39208.0,39207.0,0.055793]
[1645893048117,0.01966761,39208.0,39207.0,0.053793]
[1645893049016,0.01966761,39208.0,39207.0,0.055793]
[1645893050263,0.01966761,39208.0,39207.0,0.053793]
[1645893052468,0.01966761,39208.0,39207.0,0.26402232]
[1645893052868,0.01966761,39208.0,39207.0,0.048793]
[1645893054118,0.01966761,39208.0,39207.0,0.31800245]
[1645893054316,0.01966761,39208.0,39207.0,0.048793]
[1645893054920,0.01966761,39208.0,39207.0,0.053793]
[1645893055126,0.01966761,39208.0,39207.0,0.32306799]
[1645893056218,0.01966761,39208.0,39207.0,0.31806799]
[1645893056877,0.01966761,39208.0,39207.0,0.048793]
[1645893057682,0.01966761,39208.0,39207.0,0.31813019]
[1645893057878,0.01966761,39208.0,39207.0,0.048793]
[1645893058078,0.01966761,39208.0,39207.0,0.31815418]
[1645893058677,0.01966761,39208.0,39207.0,0.048793]
[1645893058878,0.01966761,39208.0,39207.0,0.050793]
[1645893059878,0.01966761,39208.0,39207.0,0.3201676]
[1645893060284,0.01966761,39208.0,39207.0,0.3181676]
[1645893060713,0.01966761,39208.0,39207.0,0.31816483]
[1645893060914,0.01966761,39208.0,39207.0,0.050793]
[1645893061217,0.01966761,39208.0,39207.0,0.32016571]
[1645893062213,0.01900212,39208.0,39207.0,0.31816571]
[1645893062920,0.01900212,39208.0,39207.0,0.32016571]
[1645893063314,0.01900212,39208.0,39207.0,0.07016571]
[1645893063514,0.01900212,39208.0,39207.0,0.002]
[1645893063714,0.00097705,39205.0,39204.0,0.33430268]
[1645893064872,0.00097705,39205.0,39204.0,0.0112]
[1645893065073,0.00097705,39205.0,39204.0,0.0062]
[1645893066877,0.00097705,39205.0,39204.0,0.0082]
[1645893067475,0.00097705,39205.0,39204.0,0.99457616]
[1645893067675,0.00097705,39205.0,39204.0,0.73625313]
[1645893067882,0.00097705,39205.0,39204.0,0.99457616]
[1645893068925,0.00097705,39205.0,39204.0,0.99657616]
[1645893070024,0.00097705,39205.0,39204.0,0.3613]
[1645893070216,0.00097705,39205.0,39204.0,0.3573]